[Event "Early-Titled-Tuesday-Blitz-February-20-2024"]
[Site "Chess.com"]
[Date "2024.02.20"]
[Round "3"]
[White "marcodobrikov"]
[Black "KanalSzachowy"]
[Result "0-1"]
[WhiteElo "2600"]
[BlackElo "2425"]
[TimeControl "180+1"]
[EndTime "8:27:06 PST"]
[Termination "KanalSzachowy won by resignation"]

1. c4 {[%clk 0:03:00]} 1... c5 {[%clk 0:02:59.9]} 2. Nc3 {[%clk 0:02:59.6]} 2...
Nc6 {[%clk 0:03:00.3]} 3. e4 {[%clk 0:02:58.9]} 3... g6 {[%clk 0:02:58.3]} 4. g3
{[%clk 0:02:58.2]} 4... Bg7 {[%clk 0:02:58.8]} 5. Bg2 {[%clk 0:02:58.9]} 5... d6
{[%clk 0:02:58.1]} 6. Nge2 {[%clk 0:02:58.6]} 6... Nf6 {[%clk 0:02:58.7]} 7. O-O
{[%clk 0:02:55.6]} 7... O-O {[%clk 0:02:58.7]} 8. d3 {[%clk 0:02:48.6]} 8... Ne8
{[%clk 0:02:58.5]} 9. Be3 {[%clk 0:02:44]} 9... Nc7 {[%clk 0:02:58.4]} 10. d4
{[%clk 0:02:44.6]} 10... cxd4 {[%clk 0:02:55.2]} 11. Nxd4 {[%clk 0:02:45.5]}
11... Ne6 {[%clk 0:02:54.9]} 12. Nxc6 {[%clk 0:02:39.8]} 12... bxc6 {[%clk
0:02:55.8]} 13. Qd2 {[%clk 0:02:39.4]} 13... Ba6 {[%clk 0:02:55]} 14. b3 {[%clk
0:02:37.9]} 14... Qa5 {[%clk 0:02:52.5]} 15. Rac1 {[%clk 0:02:37.3]} 15... Bb7
{[%clk 0:02:34]} 16. Rfd1 {[%clk 0:02:35]} 16... Rad8 {[%clk 0:02:29.6]} 17. Nd5
{[%clk 0:02:33.7]} 17... Qa3 {[%clk 0:02:08.1]} 18. Nxe7+ {[%clk 0:02:33.3]}
18... Kh8 {[%clk 0:02:08.6]} 19. f4 {[%clk 0:01:59.2]} 19... Rfe8 {[%clk
0:02:06.1]} 20. f5 {[%clk 0:01:59.6]} 20... Rxe7 {[%clk 0:02:03.7]} 21. fxe6
{[%clk 0:01:59.4]} 21... Rxe6 {[%clk 0:02:04.2]} 22. Bd4 {[%clk 0:01:57.9]}
22... c5 {[%clk 0:01:59.7]} 23. Bxg7+ {[%clk 0:01:56.6]} 23... Kxg7 {[%clk
0:02:00.6]} 24. Rf1 {[%clk 0:01:39.8]} 24... Bxe4 {[%clk 0:01:55.3]} 25. Qf4
{[%clk 0:01:31.5]} 25... f5 {[%clk 0:01:50.9]} 26. Bxe4 {[%clk 0:01:19.6]} 26...
Rxe4 {[%clk 0:01:51.8]} 27. Qd2 {[%clk 0:01:20.3]} 27... Rd4 {[%clk 0:01:39.6]}
28. Qe3 {[%clk 0:01:16.9]} 28... Re4 {[%clk 0:01:40]} 29. Qg5 {[%clk 0:01:14.8]}
29... Rf8 {[%clk 0:01:38.7]} 30. Rc2 {[%clk 0:01:05.7]} 30... Qa5 {[%clk
0:01:35.3]} 31. Kg2 {[%clk 0:00:58.6]} 31... Qc7 {[%clk 0:01:30.2]} 32. Rd2
{[%clk 0:00:57.3]} 32... h6 {[%clk 0:01:24.8]} 33. Qf4 {[%clk 0:00:48.8]} 33...
Rxf4 {[%clk 0:01:25.2]} 34. Rxf4 {[%clk 0:00:49.7]} 34... Qc6+ {[%clk 0:01:24]}
35. Kf2 {[%clk 0:00:49.3]} 35... Re8 {[%clk 0:01:23.3]} 36. Rd5 {[%clk
0:00:48.9]} 36... Re5 {[%clk 0:01:16.5]} 37. Rd3 {[%clk 0:00:46]} 37... Qh1
{[%clk 0:01:12.4]} 0-1

[Event "Early-Titled-Tuesday-Blitz-February-20-2024"]
[Site "Chess.com"]
[Date "2024.02.20"]
[Round "3"]
[White "ChainedDowntohell"]
[Black "bylavochka"]
[Result "1-0"]
[WhiteElo "2562"]
[BlackElo "2306"]
[TimeControl "180+1"]
[EndTime "8:27:17 PST"]
[Termination "ChainedDowntohell won by checkmate"]

1. d4 {[%clk 0:03:00.9]} 1... Nf6 {[%clk 0:02:59.2]} 2. c4 {[%clk 0:03:00.4]}
2... g6 {[%clk 0:02:58.4]} 3. Nc3 {[%clk 0:03:00.3]} 3... Bg7 {[%clk 0:02:58.6]}
4. f4 {[%clk 0:02:59.6]} 4... O-O {[%clk 0:02:57.1]} 5. g3 {[%clk 0:02:59.3]}
5... d5 {[%clk 0:02:48.2]} 6. Bg2 {[%clk 0:02:52.7]} 6... c6 {[%clk 0:02:44.4]}
7. Nf3 {[%clk 0:02:42.1]} 7... Nbd7 {[%clk 0:02:32.6]} 8. O-O {[%clk 0:02:40.5]}
8... dxc4 {[%clk 0:02:02.5]} 9. e4 {[%clk 0:02:39.3]} 9... Nb6 {[%clk
0:02:01.5]} 10. Qe2 {[%clk 0:02:36.8]} 10... Bg4 {[%clk 0:01:40.3]} 11. Rd1
{[%clk 0:02:36.3]} 11... Qc8 {[%clk 0:01:34.1]} 12. Qf1 {[%clk 0:02:26.8]} 12...
Rd8 {[%clk 0:01:27.1]} 13. Be3 {[%clk 0:02:22.8]} 13... Bxf3 {[%clk 0:01:22.7]}
14. Bxf3 {[%clk 0:02:15]} 14... Ng4 {[%clk 0:01:22.7]} 15. Qe2 {[%clk
0:02:00.7]} 15... Nxe3 {[%clk 0:01:21.4]} 16. Qxe3 {[%clk 0:02:01.6]} 16... Qc7
{[%clk 0:00:57.9]} 17. h4 {[%clk 0:01:59.7]} 17... h5 {[%clk 0:00:55.1]} 18. Kg2
{[%clk 0:01:57.9]} 18... Rac8 {[%clk 0:00:49.1]} 19. Rd2 {[%clk 0:01:54.5]}
19... Rd7 {[%clk 0:00:32.1]} 20. e5 {[%clk 0:01:47.4]} 20... Nd5 {[%clk
0:00:26.3]} 21. Nxd5 {[%clk 0:01:44.2]} 21... cxd5 {[%clk 0:00:27.2]} 22. f5
{[%clk 0:01:30.1]} 22... e6 {[%clk 0:00:18.5]} 23. f6 {[%clk 0:01:26.4]} 23...
Bf8 {[%clk 0:00:16.9]} 24. g4 {[%clk 0:01:26.6]} 24... c3 {[%clk 0:00:15.6]} 25.
Rc2 {[%clk 0:01:25.7]} 25... cxb2 {[%clk 0:00:09.9]} 26. Rxc7 {[%clk 0:01:23.1]}
26... bxa1=Q {[%clk 0:00:09.8]} 27. Rxc8 {[%clk 0:01:22.6]} 27... hxg4 {[%clk
0:00:08.6]} 28. Rxf8+ {[%clk 0:01:19.5]} 28... Kxf8 {[%clk 0:00:08.5]} 29. Qh6+
{[%clk 0:01:19.8]} 29... Ke8 {[%clk 0:00:04.6]} 30. Qh8# {[%clk 0:01:19.8]} 1-0

[Event "Early-Titled-Tuesday-Blitz-February-20-2024"]
[Site "Chess.com"]
[Date "2024.02.20"]
[Round "3"]
[White "GM_Huschenbeth"]
[Black "Iskusnyh"]
[Result "0-1"]
[WhiteElo "2468"]
[BlackElo "2679"]
[TimeControl "180+1"]
[EndTime "8:27:20 PST"]
[Termination "Iskusnyh won by resignation"]

1. e4 {[%clk 0:03:00.9]} 1... e6 {[%clk 0:02:59.6]} 2. d4 {[%clk 0:02:59.7]}
2... d5 {[%clk 0:03:00.1]} 3. Nc3 {[%clk 0:02:59.8]} 3... Nf6 {[%clk 0:02:59.7]}
4. Bg5 {[%clk 0:02:58.8]} 4... dxe4 {[%clk 0:02:59.2]} 5. Nxe4 {[%clk
0:02:59.1]} 5... Nbd7 {[%clk 0:02:59.7]} 6. Nf3 {[%clk 0:02:52.4]} 6... h6
{[%clk 0:02:59.5]} 7. Bxf6 {[%clk 0:02:47.7]} 7... Nxf6 {[%clk 0:03:00.4]} 8.
Bd3 {[%clk 0:02:47.9]} 8... Nxe4 {[%clk 0:02:54.7]} 9. Bxe4 {[%clk 0:02:47.9]}
9... c5 {[%clk 0:02:55.2]} 10. Qe2 {[%clk 0:02:46]} 10... Qa5+ {[%clk
0:02:54.7]} 11. c3 {[%clk 0:02:45.3]} 11... Be7 {[%clk 0:02:54.1]} 12. O-O
{[%clk 0:02:44.6]} 12... O-O {[%clk 0:02:52.3]} 13. Rad1 {[%clk 0:02:33.4]}
13... Bf6 {[%clk 0:02:41.8]} 14. Bb1 {[%clk 0:02:23.1]} 14... cxd4 {[%clk
0:02:27.4]} 15. cxd4 {[%clk 0:02:23]} 15... Bd7 {[%clk 0:02:19.7]} 16. Ne5
{[%clk 0:02:03.3]} 16... Bxe5 {[%clk 0:02:04.1]} 17. dxe5 {[%clk 0:02:03]} 17...
Bc6 {[%clk 0:02:03.1]} 18. Qd3 {[%clk 0:01:27.6]} 18... g6 {[%clk 0:02:00.6]}
19. Qe3 {[%clk 0:01:27.7]} 19... Rfd8 {[%clk 0:01:44.1]} 20. h4 {[%clk
0:01:22.8]} 20... Qa4 {[%clk 0:01:21.7]} 21. Rxd8+ {[%clk 0:00:59.4]} 21... Rxd8
{[%clk 0:01:22.6]} 22. Qxh6 {[%clk 0:00:56.5]} 22... Rd1 {[%clk 0:01:04.9]} 23.
b3 {[%clk 0:00:27.4]} 23... Qg4 {[%clk 0:00:57.9]} 24. f3 {[%clk 0:00:20.4]}
24... Qd4+ {[%clk 0:00:55.9]} 0-1

[Event "Early-Titled-Tuesday-Blitz-February-20-2024"]
[Site "Chess.com"]
[Date "2024.02.20"]
[Round "3"]
[White "The_Straightforward_Rook"]
[Black "lacafi"]
[Result "1-0"]
[WhiteElo "2486"]
[BlackElo "2205"]
[TimeControl "180+1"]
[EndTime "8:27:21 PST"]
[Termination "The_Straightforward_Rook won by resignation"]

1. Nf3 {[%clk 0:03:00.9]} 1... f5 {[%clk 0:02:59.9]} 2. e4 {[%clk 0:03:00.5]}
2... fxe4 {[%clk 0:02:59]} 3. Ng5 {[%clk 0:03:00.4]} 3... Nf6 {[%clk 0:02:59.7]}
4. d3 {[%clk 0:03:00.7]} 4... g6 {[%clk 0:02:51.5]} 5. Nc3 {[%clk 0:02:58.7]}
5... e6 {[%clk 0:02:51.8]} 6. Ngxe4 {[%clk 0:02:54]} 6... Bg7 {[%clk 0:02:51.8]}
7. Bg5 {[%clk 0:02:53]} 7... O-O {[%clk 0:02:51.6]} 8. h4 {[%clk 0:02:52]} 8...
Qe8 {[%clk 0:02:48.5]} 9. Bxf6 {[%clk 0:02:45.3]} 9... Bxf6 {[%clk 0:02:48.1]}
10. h5 {[%clk 0:02:46.1]} 10... d5 {[%clk 0:02:43.7]} 11. Nxf6+ {[%clk
0:02:42.2]} 11... Rxf6 {[%clk 0:02:44]} 12. hxg6 {[%clk 0:02:42.6]} 12... Qxg6
{[%clk 0:02:43.1]} 13. Qd2 {[%clk 0:02:37.9]} 13... Nc6 {[%clk 0:02:32.7]} 14.
Rh3 {[%clk 0:02:29.2]} 14... Qg7 {[%clk 0:02:28.4]} 15. O-O-O {[%clk 0:02:25.2]}
15... Ne7 {[%clk 0:02:22.6]} 16. d4 {[%clk 0:02:16]} 16... Ng6 {[%clk 0:01:48]}
17. Bd3 {[%clk 0:02:10.7]} 17... Nf4 {[%clk 0:01:00.9]} 18. Rg3 {[%clk
0:02:07.3]} 18... Ng6 {[%clk 0:01:00.9]} 19. Rh1 {[%clk 0:02:05.5]} 19... Kf7
{[%clk 0:00:37.9]} 20. Rgh3 {[%clk 0:02:01.4]} 20... Nf8 {[%clk 0:00:37.9]} 21.
Rxh7 {[%clk 0:01:54.9]} 21... Nxh7 {[%clk 0:00:35.1]} 22. Rxh7 {[%clk
0:01:55.8]} 22... Qxh7 {[%clk 0:00:32.2]} 23. Bxh7 {[%clk 0:01:56.7]} 23... Bd7
{[%clk 0:00:32.1]} 24. Bd3 {[%clk 0:01:47.7]} 24... Rh8 {[%clk 0:00:29.6]} 25.
Qe2 {[%clk 0:01:46.5]} 25... c6 {[%clk 0:00:22.1]} 26. Nd1 {[%clk 0:01:45.3]}
26... Rh4 {[%clk 0:00:18.4]} 27. c3 {[%clk 0:01:43.4]} 27... Rh2 {[%clk
0:00:18.7]} 28. Ne3 {[%clk 0:01:41.1]} 28... Rh1+ {[%clk 0:00:16.1]} 29. Kc2
{[%clk 0:01:40.9]} 29... Rf4 {[%clk 0:00:15.9]} 30. Ng4 {[%clk 0:01:38.2]} 30...
Ke7 {[%clk 0:00:16.1]} 31. Ne5 {[%clk 0:01:37.7]} 31... Kd6 {[%clk 0:00:16.1]}
32. g3 {[%clk 0:01:36.2]} 32... Rf8 {[%clk 0:00:15.5]} 33. b4 {[%clk 0:01:31.3]}
33... Rg1 {[%clk 0:00:13.9]} 34. Nf3 {[%clk 0:01:29.5]} 34... Rg2 {[%clk
0:00:13.7]} 35. Qf1 {[%clk 0:01:23.4]} 1-0

[Event "Early-Titled-Tuesday-Blitz-February-20-2024"]
[Site "Chess.com"]
[Date "2024.02.20"]
[Round "3"]
[White "ShieldingOff"]
[Black "WilsonPalencia21"]
[Result "0-1"]
[WhiteElo "2151"]
[BlackElo "2542"]
[TimeControl "180+1"]
[EndTime "8:27:24 PST"]
[Termination "WilsonPalencia21 won on time"]

1. d4 {[%clk 0:03:00.9]} 1... Nf6 {[%clk 0:02:58.4]} 2. c4 {[%clk 0:03:00.7]}
2... c5 {[%clk 0:02:58.5]} 3. d5 {[%clk 0:03:00.2]} 3... e6 {[%clk 0:02:58.6]}
4. Nc3 {[%clk 0:02:56.3]} 4... exd5 {[%clk 0:02:58.8]} 5. cxd5 {[%clk
0:02:55.9]} 5... d6 {[%clk 0:02:58.9]} 6. e4 {[%clk 0:02:55.2]} 6... g6 {[%clk
0:02:56.9]} 7. Nf3 {[%clk 0:02:54.1]} 7... a6 {[%clk 0:02:56.4]} 8. a4 {[%clk
0:02:53.5]} 8... Bg7 {[%clk 0:02:56.5]} 9. Bd3 {[%clk 0:02:53]} 9... Bg4 {[%clk
0:02:54.3]} 10. h3 {[%clk 0:02:51.8]} 10... Bxf3 {[%clk 0:02:54.6]} 11. Qxf3
{[%clk 0:02:51.6]} 11... Nfd7 {[%clk 0:02:54]} 12. Qg3 {[%clk 0:02:37.6]} 12...
Qe7 {[%clk 0:02:49.9]} 13. O-O {[%clk 0:02:34.4]} 13... O-O {[%clk 0:02:45.7]}
14. Bf4 {[%clk 0:02:32]} 14... Ne5 {[%clk 0:02:44]} 15. Bc2 {[%clk 0:02:30.9]}
15... Nbd7 {[%clk 0:02:42]} 16. Rfe1 {[%clk 0:02:13]} 16... h6 {[%clk
0:02:37.5]} 17. a5 {[%clk 0:01:50.6]} 17... g5 {[%clk 0:02:34]} 18. Bc1 {[%clk
0:01:40.6]} 18... Ng6 {[%clk 0:02:28.6]} 19. f4 {[%clk 0:01:12.7]} 19... Bd4+
{[%clk 0:02:22.6]} 20. Kh1 {[%clk 0:01:10]} 20... gxf4 {[%clk 0:02:07.7]} 21.
Bxf4 {[%clk 0:01:08.6]} 21... Be5 {[%clk 0:02:04.3]} 22. Rf1 {[%clk 0:00:56.4]}
22... Kh7 {[%clk 0:01:59.9]} 23. Ne2 {[%clk 0:00:42.9]} 23... Rg8 {[%clk
0:01:52.7]} 24. Bxe5 {[%clk 0:00:35.6]} 24... Ndxe5 {[%clk 0:01:51.6]} 25. Qf2
{[%clk 0:00:32.1]} 25... Qg5 {[%clk 0:01:24.2]} 26. Ra3 {[%clk 0:00:29.1]} 26...
Qd2 {[%clk 0:01:16.2]} 27. Bb1 {[%clk 0:00:19]} 27... Qxb2 {[%clk 0:01:11.8]}
28. Rg3 {[%clk 0:00:15.3]} 28... Rg7 {[%clk 0:01:11]} 0-1

[Event "Early-Titled-Tuesday-Blitz-February-20-2024"]
[Site "Chess.com"]
[Date "2024.02.20"]
[Round "3"]
[White "RedFirePanda"]
[Black "Nechitaylo_Nikita"]
[Result "0-1"]
[WhiteElo "2570"]
[BlackElo "2357"]
[TimeControl "180+1"]
[EndTime "8:27:32 PST"]
[Termination "Nechitaylo_Nikita won by checkmate"]

1. d4 {[%clk 0:03:00.9]} 1... Nf6 {[%clk 0:02:59.5]} 2. Bf4 {[%clk 0:03:00.2]}
2... e6 {[%clk 0:02:59.6]} 3. e3 {[%clk 0:03:00.2]} 3... d5 {[%clk 0:02:59.3]}
4. c3 {[%clk 0:02:59.5]} 4... Bd6 {[%clk 0:02:59.7]} 5. Bxd6 {[%clk 0:02:57.4]}
5... Qxd6 {[%clk 0:03:00.6]} 6. Nf3 {[%clk 0:02:57.9]} 6... c5 {[%clk 0:03:01]}
7. Nbd2 {[%clk 0:02:56.6]} 7... Nc6 {[%clk 0:03:00.1]} 8. Be2 {[%clk 0:02:55.7]}
8... O-O {[%clk 0:02:59.7]} 9. O-O {[%clk 0:02:55.8]} 9... e5 {[%clk 0:03:00.2]}
10. dxe5 {[%clk 0:02:55.3]} 10... Nxe5 {[%clk 0:03:01.1]} 11. Nxe5 {[%clk
0:02:56]} 11... Qxe5 {[%clk 0:03:02]} 12. Nf3 {[%clk 0:02:55.7]} 12... Qe7
{[%clk 0:02:58.8]} 13. Qc2 {[%clk 0:02:50.7]} 13... Bg4 {[%clk 0:02:52]} 14.
Rad1 {[%clk 0:02:46.9]} 14... Rad8 {[%clk 0:02:51.4]} 15. c4 {[%clk 0:02:28.1]}
15... Qe4 {[%clk 0:01:42.9]} 16. Bd3 {[%clk 0:02:07.2]} 16... Qe6 {[%clk
0:01:43]} 17. Be2 {[%clk 0:01:33.8]} 17... Bf5 {[%clk 0:01:01.5]} 18. Qb3 {[%clk
0:01:29.8]} 18... d4 {[%clk 0:00:57.6]} 19. Rfe1 {[%clk 0:00:55.9]} 19... dxe3
{[%clk 0:00:47.7]} 20. fxe3 {[%clk 0:00:56.8]} 20... Ng4 {[%clk 0:00:35.5]} 21.
Rxd8 {[%clk 0:00:42.7]} 21... Rxd8 {[%clk 0:00:32.8]} 22. Bf1 {[%clk 0:00:41.7]}
22... Be4 {[%clk 0:00:27]} 23. Ng5 {[%clk 0:00:37.9]} 23... Qe5 {[%clk
0:00:20.2]} 24. Nxe4 {[%clk 0:00:35.1]} 24... Qxh2# {[%clk 0:00:19.8]} 0-1

[Event "Early-Titled-Tuesday-Blitz-February-20-2024"]
[Site "Chess.com"]
[Date "2024.02.20"]
[Round "3"]
[White "abeljusto"]
[Black "dealshark"]
[Result "0-1"]
[WhiteElo "2077"]
[BlackElo "2367"]
[TimeControl "180+1"]
[EndTime "8:27:32 PST"]
[Termination "dealshark won by checkmate"]

1. d4 {[%clk 0:03:00.9]} 1... Nf6 {[%clk 0:03:00.1]} 2. Bf4 {[%clk 0:02:56.9]}
2... d5 {[%clk 0:03:00]} 3. e3 {[%clk 0:02:56.3]} 3... Bf5 {[%clk 0:03:00]} 4.
c4 {[%clk 0:02:55.1]} 4... e6 {[%clk 0:03:00.2]} 5. Qb3 {[%clk 0:02:54.9]} 5...
Qc8 {[%clk 0:02:59.2]} 6. Nc3 {[%clk 0:02:52.4]} 6... c6 {[%clk 0:02:56.8]} 7.
Nf3 {[%clk 0:02:41.1]} 7... Be7 {[%clk 0:02:56.8]} 8. h3 {[%clk 0:02:35.8]} 8...
Nbd7 {[%clk 0:02:54.5]} 9. cxd5 {[%clk 0:02:14.5]} 9... exd5 {[%clk 0:02:52.6]}
10. Be2 {[%clk 0:02:13.8]} 10... O-O {[%clk 0:02:51.1]} 11. O-O {[%clk
0:02:13.4]} 11... Re8 {[%clk 0:02:50.2]} 12. Rac1 {[%clk 0:02:11.4]} 12... Nb6
{[%clk 0:02:45.6]} 13. a4 {[%clk 0:02:10.2]} 13... Qd7 {[%clk 0:02:42.2]} 14.
Ne5 {[%clk 0:02:06.4]} 14... Qc8 {[%clk 0:02:18.9]} 15. a5 {[%clk 0:01:38.7]}
15... Nbd7 {[%clk 0:02:18.5]} 16. g4 {[%clk 0:01:34.6]} 16... Bg6 {[%clk
0:01:54.1]} 17. g5 {[%clk 0:01:32.2]} 17... Ne4 {[%clk 0:01:47.1]} 18. Rfd1
{[%clk 0:01:21.5]} 18... Nxe5 {[%clk 0:01:46.9]} 19. dxe5 {[%clk 0:01:15.2]}
19... Qxh3 {[%clk 0:01:44.5]} 20. Qxb7 {[%clk 0:00:53.2]} 20... Bxg5 {[%clk
0:01:17]} 21. Bh2 {[%clk 0:00:37.2]} 21... Nxc3 {[%clk 0:01:09.3]} 22. Rxc3
{[%clk 0:00:33.2]} 22... Be4 {[%clk 0:01:07.6]} 23. Bf1 {[%clk 0:00:21.9]} 23...
Qg4+ {[%clk 0:01:05.5]} 24. Bg3 {[%clk 0:00:19.6]} 24... Qf3 {[%clk 0:00:50.6]}
25. Bh3 {[%clk 0:00:06.8]} 25... Qh1# {[%clk 0:00:49.2]} 0-1

[Event "Early-Titled-Tuesday-Blitz-February-20-2024"]
[Site "Chess.com"]
[Date "2024.02.20"]
[Round "3"]
[White "regenda"]
[Black "kleopl"]
[Result "0-1"]
[WhiteElo "2232"]
[BlackElo "2546"]
[TimeControl "180+1"]
[EndTime "8:27:35 PST"]
[Termination "kleopl won by checkmate"]

1. e4 {[%clk 0:03:00.9]} 1... c5 {[%clk 0:02:58.8]} 2. Be2 {[%clk 0:03:00.8]}
2... d5 {[%clk 0:02:55.6]} 3. exd5 {[%clk 0:03:00.7]} 3... Qxd5 {[%clk
0:02:56.5]} 4. Nf3 {[%clk 0:03:00.8]} 4... Nc6 {[%clk 0:02:55.3]} 5. Na3 {[%clk
0:02:57.8]} 5... Bg4 {[%clk 0:02:48]} 6. O-O {[%clk 0:02:57.3]} 6... Nf6 {[%clk
0:02:47]} 7. d4 {[%clk 0:02:51.3]} 7... cxd4 {[%clk 0:02:44.3]} 8. Nb5 {[%clk
0:02:48.2]} 8... O-O-O {[%clk 0:02:37.4]} 9. Nbxd4 {[%clk 0:01:39.5]} 9... Nxd4
{[%clk 0:02:29.5]} 10. Nxd4 {[%clk 0:01:38.8]} 10... Qxd4 {[%clk 0:02:11.1]} 11.
Qe1 {[%clk 0:01:15.8]} 11... e6 {[%clk 0:02:06]} 12. Be3 {[%clk 0:01:14.4]}
12... Qa4 {[%clk 0:02:02]} 13. b3 {[%clk 0:01:11.9]} 13... Qc6 {[%clk
0:01:58.3]} 14. f3 {[%clk 0:00:39.6]} 14... Bc5 {[%clk 0:01:53.5]} 15. Bb5
{[%clk 0:00:09.2]} 15... Bxe3+ {[%clk 0:01:43.8]} 16. Qxe3 {[%clk 0:00:10.1]}
16... Qxb5 {[%clk 0:01:44.1]} 17. fxg4 {[%clk 0:00:10.1]} 17... Qb6 {[%clk
0:01:16.4]} 18. Qxb6 {[%clk 0:00:09.2]} 18... axb6 {[%clk 0:01:17.3]} 19. g5
{[%clk 0:00:09.8]} 19... Ne4 {[%clk 0:01:17]} 20. Rxf7 {[%clk 0:00:10.3]} 20...
Rd7 {[%clk 0:01:15.4]} 21. Raf1 {[%clk 0:00:05.7]} 21... Nxg5 {[%clk 0:01:13.6]}
22. Rxd7 {[%clk 0:00:03.8]} 22... Kxd7 {[%clk 0:01:14.5]} 23. h4 {[%clk
0:00:04]} 23... Ne4 {[%clk 0:01:14.7]} 24. Rf7+ {[%clk 0:00:04.6]} 24... Kc6
{[%clk 0:01:08.2]} 25. Rxg7 {[%clk 0:00:04.8]} 25... h5 {[%clk 0:01:08.6]} 26.
Kh2 {[%clk 0:00:02.2]} 26... Nf6 {[%clk 0:01:07.9]} 27. Rg6 {[%clk 0:00:02.6]}
27... Ng4+ {[%clk 0:01:07.6]} 28. Kg3 {[%clk 0:00:03.2]} 28... Kd6 {[%clk
0:01:07]} 29. Kf4 {[%clk 0:00:03.5]} 29... Rf8+ {[%clk 0:01:05.6]} 30. Kg5
{[%clk 0:00:04]} 30... Rf5# {[%clk 0:01:05]} 0-1

[Event "Early-Titled-Tuesday-Blitz-February-20-2024"]
[Site "Chess.com"]
[Date "2024.02.20"]
[Round "3"]
[White "DeArron_Fox"]
[Black "bancsoo"]
[Result "0-1"]
[WhiteElo "2509"]
[BlackElo "2900"]
[TimeControl "180+1"]
[EndTime "8:27:39 PST"]
[Termination "bancsoo won by resignation"]

1. d4 {[%clk 0:03:00.9]} 1... d5 {[%clk 0:03:00]} 2. c4 {[%clk 0:02:54]} 2... e6
{[%clk 0:03:00]} 3. Nc3 {[%clk 0:02:49.1]} 3... Nf6 {[%clk 0:03:00]} 4. cxd5
{[%clk 0:02:48.8]} 4... exd5 {[%clk 0:03:00.4]} 5. Bg5 {[%clk 0:02:49]} 5... c6
{[%clk 0:03:00.8]} 6. e3 {[%clk 0:02:49.5]} 6... Bf5 {[%clk 0:03:00.6]} 7. Qf3
{[%clk 0:02:48.9]} 7... Bg6 {[%clk 0:03:01]} 8. Bxf6 {[%clk 0:02:49.2]} 8...
Qxf6 {[%clk 0:03:01.7]} 9. Qxf6 {[%clk 0:02:49.4]} 9... gxf6 {[%clk 0:03:02.4]}
10. Kd2 {[%clk 0:02:19.9]} 10... a5 {[%clk 0:03:00.5]} 11. Bd3 {[%clk
0:02:18.9]} 11... a4 {[%clk 0:02:59.6]} 12. a3 {[%clk 0:02:13.6]} 12... b5
{[%clk 0:02:59.6]} 13. Nge2 {[%clk 0:02:11.9]} 13... Nd7 {[%clk 0:02:59.7]} 14.
h4 {[%clk 0:02:07.9]} 14... Nb6 {[%clk 0:02:54.5]} 15. Nf4 {[%clk 0:01:46.3]}
15... Nc4+ {[%clk 0:02:31.3]} 16. Bxc4 {[%clk 0:00:41.7]} 16... dxc4 {[%clk
0:02:26.5]} 17. g4 {[%clk 0:00:27]} 17... h6 {[%clk 0:02:04.5]} 18. Nxg6 {[%clk
0:00:13.7]} 18... fxg6 {[%clk 0:02:05.4]} 19. h5 {[%clk 0:00:14.1]} 19... g5
{[%clk 0:02:04.4]} 20. Ne4 {[%clk 0:00:11.4]} 20... Be7 {[%clk 0:02:03.9]} 21.
Ng3 {[%clk 0:00:10.3]} 21... Rh7 {[%clk 0:01:52.6]} 22. Nf5 {[%clk 0:00:09.7]}
22... Bf8 {[%clk 0:01:53.3]} 23. f4 {[%clk 0:00:03.8]} 23... gxf4 {[%clk
0:01:44.1]} 24. exf4 {[%clk 0:00:03.9]} 24... Kd7 {[%clk 0:01:44.8]} 25. Rae1
{[%clk 0:00:04.1]} 25... Rh8 {[%clk 0:01:35.7]} 26. Re2 {[%clk 0:00:04.2]} 26...
Rg8 {[%clk 0:01:36.2]} 27. Rg1 {[%clk 0:00:03.1]} 27... b4 {[%clk 0:01:14.5]}
28. axb4 {[%clk 0:00:02.4]} 28... Bxb4+ {[%clk 0:01:15.2]} 29. Kc2 {[%clk
0:00:03.3]} 29... a3 {[%clk 0:01:15.9]} 30. bxa3 {[%clk 0:00:02.9]} 30... Rxa3
{[%clk 0:01:15.7]} 31. Reg2 {[%clk 0:00:03.4]} 31... Rga8 {[%clk 0:01:14.5]} 32.
Nxh6 {[%clk 0:00:02.1]} 32... Rc3+ {[%clk 0:01:12]} 33. Kb2 {[%clk 0:00:02.5]}
33... Rb3+ {[%clk 0:01:12.4]} 34. Kc1 {[%clk 0:00:02.2]} 34... Ra1+ {[%clk
0:01:12.5]} 35. Kc2 {[%clk 0:00:02.6]} 35... Ra2+ {[%clk 0:01:13.2]} 36. Kc1
{[%clk 0:00:02.5]} 36... Ba3+ {[%clk 0:01:13.9]} 0-1

[Event "Early-Titled-Tuesday-Blitz-February-20-2024"]
[Site "Chess.com"]
[Date "2024.02.20"]
[Round "3"]
[White "Zurability"]
[Black "ChessLover0108"]
[Result "0-1"]
[WhiteElo "2735"]
[BlackElo "2968"]
[TimeControl "180+1"]
[EndTime "8:27:40 PST"]
[Termination "ChessLover0108 won by resignation"]

1. e4 {[%clk 0:03:00]} 1... c5 {[%clk 0:03:00.2]} 2. Nf3 {[%clk 0:02:59.5]} 2...
d6 {[%clk 0:03:00.9]} 3. c3 {[%clk 0:02:59.7]} 3... Nf6 {[%clk 0:03:01]} 4. Bd3
{[%clk 0:03:00.5]} 4... Nc6 {[%clk 0:02:58.3]} 5. h3 {[%clk 0:02:58.7]} 5... g6
{[%clk 0:02:57.6]} 6. O-O {[%clk 0:02:58.8]} 6... Bg7 {[%clk 0:02:58]} 7. Bc2
{[%clk 0:02:59.5]} 7... e5 {[%clk 0:02:55.7]} 8. Re1 {[%clk 0:02:58.8]} 8... O-O
{[%clk 0:02:55.6]} 9. d3 {[%clk 0:02:55.3]} 9... d5 {[%clk 0:02:53.1]} 10. Nbd2
{[%clk 0:02:55.2]} 10... d4 {[%clk 0:02:53.1]} 11. Ba4 {[%clk 0:02:54.6]} 11...
dxc3 {[%clk 0:02:32.4]} 12. Nc4 {[%clk 0:02:54.7]} 12... c2 {[%clk 0:01:54.5]}
13. Qd2 {[%clk 0:02:39.3]} 13... Nd4 {[%clk 0:01:39.4]} 14. Nfxe5 {[%clk
0:02:13.1]} 14... b5 {[%clk 0:01:33.6]} 15. Bxb5 {[%clk 0:01:54.1]} 15... Nxb5
{[%clk 0:01:34.5]} 16. Qxc2 {[%clk 0:01:54.9]} 16... Nd4 {[%clk 0:01:33.1]} 17.
Qd1 {[%clk 0:01:54.4]} 17... Nd7 {[%clk 0:01:30.9]} 18. Nxd7 {[%clk 0:01:54]}
18... Bxd7 {[%clk 0:01:31.8]} 19. Be3 {[%clk 0:01:53.2]} 19... Be6 {[%clk
0:01:29.8]} 20. Rc1 {[%clk 0:01:53]} 20... Qd7 {[%clk 0:01:10.7]} 21. b3 {[%clk
0:01:50.9]} 21... Rfd8 {[%clk 0:01:10.8]} 22. f4 {[%clk 0:01:29]} 22... Rac8
{[%clk 0:00:52.3]} 23. Rf1 {[%clk 0:01:22.8]} 23... Nb5 {[%clk 0:00:45.5]} 24.
Qf3 {[%clk 0:01:00.7]} 24... Qxd3 {[%clk 0:00:34.9]} 25. f5 {[%clk 0:01:00.9]}
25... Nd4 {[%clk 0:00:30.1]} 26. Qf2 {[%clk 0:00:54.6]} 26... Bxc4 {[%clk
0:00:25.1]} 27. Rxc4 {[%clk 0:00:53.2]} 27... Qxe4 {[%clk 0:00:23.8]} 28. fxg6
{[%clk 0:00:48.5]} 28... fxg6 {[%clk 0:00:24.7]} 0-1